bitfinex/quotes_SOLUSD_20260105
["timestamp","ask_amount","ask_price","bid_price","bid_amount"]
[1767627168735,0.72428453,135.35,135.31,9.65823567]
[1767627169144,9.65823567,135.37,135.32,17.04767141]
[1767627169145,0.72428453,135.37,135.32,17.04767141]
[1767627169322,0.72428453,135.36,135.32,9.65823567]
[1767627169520,10.3825202,135.36,135.31,17.62531989]
[1767627169739,0.72428453,135.36,135.32,17.04794782]
[1767627169940,7.3863488,135.39,135.33,9.65823567]
[1767627170126,9.65823567,135.38,135.33,9.65823567]
[1767627170325,36.9175092,135.44,135.35,17.04626495]
[1767627170326,13.46,135.43,135.35,17.04626495]
[1767627170637,9.65823567,135.41,135.36,9.65823567]
[1767627171025,9.65823567,135.41,135.35,7.38802928]
[1767627171228,9.65823567,135.41,135.35,17.04626495]
[1767627171422,9.65823567,135.41,135.35,7.38802928]
[1767627171636,7.38552437,135.4,135.36,9.65823567]
[1767627171836,7.38552437,135.4,135.35,7.38802928]
[1767627171837,8.1098089,135.4,135.35,17.04626495]
[1767627172041,0.72428453,135.39,135.35,7.38802928]
[1767627172248,0.72428453,135.39,135.33,10.29505767]
[1767627172546,0.72428453,135.39,135.33,17.68418084]
[1767627172742,10.3825202,135.39,135.33,17.68418084]
[1767627173042,10.3825202,135.39,135.33,8.02594517]
[1767627173248,9.65823567,135.38,135.33,8.02594517]
[1767627173425,10.3825202,135.39,135.34,7.38876036]
[1767627173948,8.11078205,135.39,135.33,17.68416031]
[1767627174155,17.76901772,135.39,135.33,17.68416031]
[1767627174456,10.3825202,135.39,135.33,17.68416031]
[1767627175045,17.76866452,135.39,135.33,17.68416031]
[1767627175242,17.76866452,135.39,135.34,9.65823567]
[1767627175640,17.76866452,135.39,135.33,17.68416031]
[1767627176621,10.3825202,135.39,135.33,36.15752172]
[1767627176827,0.72428453,135.39,135.35,9.65823567]
[1767627177155,0.72428453,135.39,135.34,0.636822]
[1767627177355,0.72428453,135.39,135.35,9.65823567]
[1767627177531,0.72428453,135.39,135.34,0.636822]
[1767627177532,0.72428453,135.39,135.34,10.29505767]
[1767627177853,0.72428453,135.39,135.35,9.65823567]
[1767627178224,0.69457087,135.41,135.36,9.65823567]
[1767627178850,17.7378587,135.41,135.36,9.65823567]
[1767627179046,0.69457087,135.41,135.36,9.65823567]
[1767627179550,0.69457087,135.4,135.35,25.85888436]
[1767627179754,0.69457087,135.4,135.35,35.51712003]
[1767627180628,0.69457087,135.4,135.35,36.15394203]
[1767627181049,17.04326859,135.41,135.36,0.636822]
[1767627181050,9.65823567,135.41,135.36,0.636822]
[1767627181264,0.69596748,135.41,135.36,10.29505767]
[1767627181434,10.35420315,135.41,135.36,10.29505767]
[1767627181633,0.69596748,135.41,135.36,10.29505767]
[1767627181964,0.69596748,135.43,135.39,9.65823567]
[1767627182174,0.69596748,135.46,135.4,9.65823567]
[1767627182330,0.69596748,135.45,135.4,9.65823567]
[1767627182838,0.69596748,135.45,135.37,14.096822]
[1767627182839,0.69596748,135.44,135.37,14.096822]
[1767627183045,0.69596748,135.44,135.39,9.65823567]
[1767627183339,0.69596748,135.44,135.4,9.65823567]
[1767627183543,0.69596748,135.44,135.41,9.65823567]
[1767627184135,0.69596748,135.44,135.38,25.85315408]
[1767627184339,31.91389862,135.48,135.38,25.85315408]
[1767627184340,0.69596748,135.42,135.38,35.51138975]
[1767627184555,0.69596748,135.46,135.41,9.65823567]
[1767627184748,17.03943789,135.48,135.42,10.29505767]
[1767627185059,10.35420315,135.48,135.43,17.04180244]
[1767627185266,8.07721715,135.48,135.43,7.38356677]
[1767627185430,17.73545282,135.48,135.43,7.38356677]
[1767627185634,10.35420315,135.47,135.42,17.67935399]
[1767627185858,10.35420315,135.46,135.4,23.75505767]
[1767627186064,9.65823567,135.45,135.4,23.68043767]
[1767627186358,10.35420315,135.42,135.37,9.65823567]
[1767627186655,10.35420315,135.42,135.37,17.04497769]
[1767627186962,0.69596748,135.42,135.37,17.68179969]
[1767627187257,0.69596748,135.44,135.4,9.65823567]
[1767627187561,0.69596748,135.45,135.41,9.65823567]
[1767627187736,0.69596748,135.45,135.4,10.29505767]
[1767627187937,10.35420315,135.45,135.4,0.636822]
[1767627188136,10.35420315,135.45,135.4,10.29505767]
[1767627188539,0.69596748,135.44,135.39,9.65823567]
[1767627188741,17.0413849,135.45,135.33,8.35013837]
[1767627188742,0.69596748,135.39,135.34,0.636822]
[1767627188939,0.69596748,135.38,135.34,9.65823567]
[1767627189162,9.65823567,135.39,135.33,0.636822]
[1767627189353,10.35420315,135.4,135.35,9.65823567]
[1767627189756,0.69596748,135.4,135.34,10.29505767]
[1767627190069,0.69596748,135.4,135.36,9.65823567]
[1767627190569,0.69596748,135.4,135.36,7.38748443]
[1767627190750,0.69596748,135.4,135.36,17.0457201]
[1767627191655,0.69596748,135.44,135.37,0.636822]
[1767627191855,0.69596748,135.43,135.36,8.02430643]
[1767627192051,20.84279808,135.45,135.37,9.65823567]
[1767627192052,10.35420315,135.42,135.37,9.65823567]
[1767627192249,0.69596748,135.42,135.37,9.65823567]
[1767627192560,0.69596748,135.41,135.36,17.6825421]
[1767627192767,0.69596748,135.41,135.37,9.65823567]
[1767627192959,0.69596748,135.42,135.38,9.65823567]
[1767627193151,0.69596748,135.42,135.36,26.49357356]
[1767627193348,0.69596748,135.42,135.37,0.636822]
[1767627193761,0.69596748,135.42,135.37,10.29505767]
[1767627194261,10.35420315,135.41,135.36,13.46]
[1767627194569,0.69596748,135.43,135.38,6.57555078]
[1767627195056,0.69596748,135.43,135.38,0.636822]
[1767627195363,0.69596748,135.42,135.38,5.93872878]
[1767627195867,0.69596748,135.42,135.38,13.32515458]
[1767627196166,0.69596748,135.4,135.36,19.39872878]
[1767627196463,6.63469626,135.42,135.37,7.38679485]
[1767627196969,0.69596748,135.4,135.36,26.7862337]
[1767627197263,0.69596748,135.4,135.35,7.38809712]
[1767627197264,6.63469626,135.4,135.35,7.38809712]
[1767627197472,0.69596748,135.39,135.35,7.38809712]
[1767627197666,0.69596748,135.39,135.35,13.3268259]
[1767627198566,0.69596748,135.39,135.35,7.38809712]
[1767627198766,0.69596748,135.37,135.33,5.93872878]
[1767627198940,0.69596748,135.37,135.33,13.32794922]
[1767627199147,0.69596748,135.38,135.34,7.38857864]
[1767627199393,0.69596748,135.38,135.33,13.32807334]
[1767627199670,6.63469626,135.38,135.33,7.38934456]
[1767627199868,14.02157699,135.38,135.33,7.38934456]
[1767627200063,8.08284821,135.38,135.33,13.32807334]
[1767627200263,14.02157699,135.38,135.33,13.32807334]
[1767627200469,0.69596748,135.37,135.33,7.38934456]
[1767627200672,0.69596748,135.37,135.32,13.96532185]
[1767627200850,0.69596748,135.37,135.32,8.02659307]
[1767627201048,0.69596748,135.37,135.32,13.96532185]
[1767627201250,0.69596748,135.37,135.33,5.93872878]
[1767627201454,0.69596748,135.37,135.33,7.38923419]
[1767627201759,0.69596748,135.36,135.32,13.96530397]
[1767627201962,0.69596748,135.36,135.32,7.38975319]
[1767627202264,0.69596748,135.36,135.33,13.32797557]
[1767627202467,0.69596748,135.36,135.33,7.38924679]
[1767627202773,0.69596748,135.36,135.32,13.32853406]
[1767627202954,0.69596748,135.36,135.31,20.85020177]
[1767627202955,0.69596748,135.35,135.31,20.85020177]
[1767627203164,0.69596748,135.34,135.31,20.85020177]
[1767627203363,0.69596748,135.34,135.31,13.46]
[1767627203677,8.08417361,135.36,135.31,26.7890979]
[1767627203969,0.69596748,135.35,135.31,26.7890979]
[1767627204174,0.69596748,135.35,135.31,20.85036912]
[1767627204671,0.69596748,135.35,135.31,13.46]
[1767627204852,0.69596748,135.34,135.31,13.46]
[1767627205053,0.69596748,135.35,135.31,19.39872878]
[1767627205269,0.69596748,135.36,135.31,8.02706433]
[1767627205577,0.69596748,135.35,135.31,8.02706433]
[1767627205874,0.69596748,135.35,135.31,13.96579311]
[1767627206260,0.69596748,135.35,135.31,8.02706433]
[1767627206451,0.69596748,135.35,135.31,13.96579311]
[1767627206769,0.69596748,135.35,135.31,7.39024233]
[1767627207278,0.69596748,135.35,135.3,24.41552824]
[1767627207279,0.69596748,135.35,135.3,13.32945558]
[1767627207656,6.63469626,135.34,135.3,7.3907268]
[1767627207852,6.63469626,135.33,135.26,18.48233466]
[1767627208055,0.69596748,135.31,135.28,7.391939]
[1767627208272,0.69596748,135.33,135.29,7.39121845]
[1767627208475,0.69596748,135.33,135.29,5.93872878]
[1767627209053,0.69596748,135.33,135.28,8.02870649]
[1767627209259,6.63469626,135.33,135.28,13.96743527]
[1767627209769,0.69596748,135.33,135.28,13.96743527]
[1767627210169,0.63596749,135.33,135.28,13.96743527]
[1767627210373,8.02537393,135.33,135.28,13.96743527]
[1767627210574,8.02537393,135.33,135.28,8.02870649]
[1767627210754,8.02537393,135.33,135.28,13.96743527]
[1767627210951,13.96410271,135.33,135.28,8.02870649]
[1767627211457,13.96410271,135.33,135.28,13.96743527]
[1767627211653,13.96410271,135.33,135.28,8.02870649]
[1767627211876,0.63596749,135.33,135.28,13.96743527]
[1767627212068,13.96404399,135.33,135.28,8.02870649]
[1767627212273,14.04120283,135.33,135.28,13.96743527]
[1767627212569,13.98120284,135.33,135.28,13.96743527]
[1767627212964,13.98120284,135.33,135.28,8.02870649]
[1767627213166,0.71312633,135.32,135.28,8.02870649]
[1767627213474,0.71312633,135.32,135.27,18.48079325]
[1767627213865,0.71312633,135.32,135.27,19.15090719]
[1767627214074,0.71312633,135.32,135.27,25.08963597]
[1767627214496,0.71312633,135.31,135.26,7.39316871]
[1767627214675,0.71312633,135.31,135.26,14.00201143]
[1767627214984,0.71312633,135.33,135.28,6.60884272]
[1767627215676,0.71312633,135.33,135.29,7.3915293]
[1767627216759,7.38847384,135.35,135.29,14.00037202]
[1767627216760,0.71312633,135.34,135.29,14.00037202]
[1767627216960,6.65185511,135.34,135.29,14.00037202]
[1767627217187,0.71312633,135.33,135.29,14.00037202]
[1767627217473,0.71312633,135.33,135.29,8.06164324]
[1767627217675,0.71312633,135.33,135.28,7.39188347]
[1767627217878,6.65185511,135.31,135.27,7.39234607]
[1767627218066,0.71312633,135.3,135.27,7.39234607]
[1767627218980,0.71312633,135.29,135.26,7.3928814]
[1767627219161,0.71312633,135.31,135.27,7.39230746]
[1767627219363,0.71312633,135.3,135.27,7.39230746]
[1767627219776,0.71312633,135.3,135.26,25.87609049]
[1767627220092,6.65185511,135.32,135.27,5.93872878]
[1767627220384,0.71312633,135.31,135.27,5.93872878]
[1767627220556,0.71312633,135.31,135.26,26.54620443]
[1767627220557,0.65312634,135.31,135.26,26.54620443]
[1767627220760,0.65312634,135.31,135.26,32.48493321]
[1767627220975,0.59312635,135.31,135.28,7.39207569]
[1767627221182,0.59312635,135.31,135.27,7.39242444]
[1767627222189,13.32923006,135.31,135.26,13.33169504]
[1767627222388,13.32923006,135.31,135.26,7.39307769]
[1767627222575,5.93872878,135.29,135.24,0.2]
[1767627222755,25.86659321,135.31,135.24,8.26397984]
[1767627222955,6.65185511,135.29,135.24,14.20270862]
[1767627223176,0.71312633,135.29,135.25,5.93872878]
[1767627223582,0.71312633,135.29,135.24,32.68836375]
[1767627223983,0.71312633,135.29,135.25,6.60884272]
[1767627224186,0.71312633,135.3,135.25,0.67011394]
[1767627224387,0.71312633,135.3,135.26,5.93872878]
[1767627224571,0.71312633,135.3,135.26,0.67011394]
[1767627224878,0.71312633,135.3,135.26,6.60884272]
[1767627225055,0.71312633,135.3,135.27,7.39262216]
[1767627225968,0.65312634,135.3,135.27,7.39262216]
[1767627226172,5.93872878,135.33,135.27,14.00146488]
[1767627226382,167.2,135.4,135.31,6.60884272]
[1767627226577,167.2,135.4,135.28,13.46]
[1767627226578,5.93872878,135.36,135.29,0.67011394]
[1767627226785,8.35013837,135.41,135.31,5.93872878]
[1767627226786,5.93872878,135.37,135.31,5.93872878]
[1767627226992,5.93872878,135.36,135.31,5.93872878]
[1767627227288,13.32670405,135.36,135.31,5.93872878]
[1767627227466,13.32670405,135.36,135.3,13.32971178]
[1767627227970,0.71312633,135.35,135.3,13.32971178]
[1767627228571,0.71312633,135.35,135.3,7.390983]
[1767627228760,0.71312633,135.35,135.3,13.32971178]
[1767627229790,0.71312633,135.35,135.3,32.47728322]
[1767627229977,0.71312633,135.35,135.3,31.80716928]
[1767627231386,0.71312633,135.35,135.3,18.4774575]
[1767627231589,0.71312633,135.35,135.3,25.08630022]
[1767627232697,0.71312633,135.35,135.31,5.93872878]
[1767627232991,0.71312633,135.35,135.3,32.47728322]
[1767627233879,0.69562725,135.36,135.31,0.68034193]
[1767627234177,0.69562725,135.36,135.32,6.61907071]
[1767627234388,0.69562725,135.38,135.33,5.93872878]
[1767627234576,0.69562725,135.38,135.33,2.42059757]
[1767627234899,0.69562725,135.38,135.34,7.38879858]
[1767627235080,8.08135413,135.4,135.34,8.06914051]
[1767627235284,0.69562725,135.39,135.35,2.42059757]
[1767627235484,0.69562725,135.39,135.34,8.06914051]
[1767627235885,0.69562725,135.39,135.35,2.42059757]
[1767627236087,0.69562725,135.39,135.34,10.48973808]
[1767627236291,0.69562725,135.38,135.34,10.48973808]
[1767627236491,0.69562725,135.36,135.32,7.38953649]
[1767627236683,0.69562725,135.36,135.32,14.01448634]
[1767627236878,0.69562725,135.36,135.33,13.33392439]
[1767627237814,7.38641975,135.39,135.29,0.68034193]
[1767627237815,0.69562725,135.34,135.29,0.68034193]
[1767627237989,0.69562725,135.36,135.31,5.94460792]
[1767627238177,0.69562725,135.35,135.31,13.33461346]
[1767627238701,0.69562725,135.35,135.31,7.39000554]
[1767627238897,0.69562725,135.35,135.3,0.68034193]
[1767627239284,0.69562725,135.33,135.29,13.33601951]
[1767627239784,0.69562725,135.33,135.28,27.47679199]
[1767627239986,0.69562725,135.32,135.27,13.33698754]
[1767627240200,0.69562725,135.3,135.25,13.46]
[1767627240389,0.69562725,135.28,135.24,0.2]
[1767627240580,13.46,135.31,135.26,8.07337244]
[1767627240581,5.94460792,135.31,135.26,8.07337244]
[1767627240899,5.94460792,135.31,135.26,14.01798036]
[1767627241103,13.46,135.32,135.26,14.01798036]
[1767627241104,5.94460792,135.32,135.27,5.94460792]
[1767627241277,5.94460792,135.32,135.26,8.07337244]
[1767627241481,5.94460792,135.33,135.27,6.64059472]
[1767627241703,5.94460792,135.34,135.28,5.94460792]
[1767627242010,5.94460792,135.33,135.27,6.64059472]
[1767627242307,5.94460792,135.33,135.28,7.39207569]
[1767627242477,0.69515038,135.32,135.28,7.39207569]
[1767627242880,5.94460792,135.34,135.29,0.6959868]
[1767627243302,0.69515038,135.36,135.31,0.6959868]
[1767627243497,0.69515038,135.36,135.32,5.94460792]
[1767627243696,0.69515038,135.36,135.32,6.64059472]
[1767627244008,0.69515038,135.37,135.32,6.64059472]
[1767627244310,0.69515038,135.37,135.33,7.38934456]
[1767627244699,0.69515038,135.37,135.33,13.33395248]
[1767627244905,0.69515038,135.37,135.33,14.02993928]
[1767627245110,13.33114648,135.39,135.33,14.02993928]
[1767627245111,0.69515038,135.38,135.33,14.02993928]
[1767627245418,0.69515038,135.38,135.33,8.08533136]
[1767627245619,0.69515038,135.38,135.33,14.02993928]
[1767627246285,0.69515038,135.38,135.33,8.08533136]
[1767627246495,0.69515038,135.38,135.33,14.02993928]
[1767627247187,0.69515038,135.38,135.33,32.50330069]
[1767627247387,0.69515038,135.38,135.33,26.55869277]
[1767627247605,0.69515038,135.38,135.33,45.96330069]
[1767627248503,0.69515038,135.38,135.33,26.55869277]
[1767627248711,0.69515038,135.38,135.33,32.50330069]
[1767627248909,0.69515038,135.36,135.31,25.1160941]
[1767627249112,6.6397583,135.38,135.33,0.6959868]
[1767627250611,0.69515038,135.38,135.33,6.64059472]
[1767627250914,6.6397583,135.39,135.34,6.64059472]
[1767627251118,6.6397583,135.39,135.35,7.38825267]
[1767627251315,5.94460792,135.38,135.35,7.38825267]
[1767627251617,6.6397583,135.39,135.35,8.08423947]
[1767627251915,0.69515038,135.41,135.35,14.02884739]
[1767627252219,6.6397583,135.41,135.36,0.6959868]
[1767627252716,6.6397583,135.38,135.34,8.08453983]
[1767627252925,0.69515038,135.38,135.34,8.08453983]
[1767627253210,0.69515038,135.38,135.34,14.02914775]
[1767627253914,0.69515038,135.38,135.34,8.08453983]
[1767627254118,5.94460792,135.4,135.34,32.5011442]
[1767627254305,0.69515038,135.39,135.34,32.5011442]
[1767627254620,0.69515038,135.39,135.34,36.212712]
[1767627254914,10.3513261,135.38,135.34,8.08453983]
[1767627255115,0.69515038,135.38,135.34,7.38855303]
[1767627255305,0.69515038,135.38,135.34,17.04472875]
[1767627255702,0.69515038,135.38,135.34,35.5167252]
[1767627256013,9.65617572,135.4,135.35,0.6959868]
[1767627256014,0.69515038,135.4,135.35,0.6959868]
[1767627256318,0.69515038,135.4,135.36,9.65617572]
[1767627256697,0.69515038,135.41,135.36,0.6959868]
[1767627256920,0.69515038,135.41,135.36,23.81216252]
[1767627257620,0.69515038,135.41,135.37,7.38716111]
[1767627257823,0.69515038,135.43,135.38,0.6959868]
[1767627257993,10.3513261,135.45,135.4,0.6959868]
[1767627258822,0.69515038,135.45,135.4,0.6959868]
[1767627259024,10.3513261,135.45,135.4,0.6959868]
[1767627259554,0.69515038,135.45,135.41,7.38497895]
[1767627259724,0.69515038,135.44,135.4,8.08128133]
[1767627261409,0.79515038,135.47,135.42,0.6959868]
[1767627261610,0.79515038,135.47,135.43,7.38388835]
[1767627262119,0.79515038,135.47,135.43,8.07987515]
[1767627263011,0.1,135.47,135.43,8.07987515]
[1767627263726,10.3513261,135.45,135.38,0.6959868]
[1767627264031,0.69515038,135.45,135.41,8.08083128]
[1767627264219,10.3513261,135.45,135.41,8.08083128]
[1767627264922,0.69515038,135.45,135.4,8.08143192]
[1767627265117,10.3513261,135.44,135.4,0.6959868]
[1767627265319,10.3513261,135.43,135.39,21.54191608]
[1767627265523,0.69515038,135.43,135.39,21.54191608]
[1767627265726,10.3513261,135.43,135.39,21.54191608]
[1767627266551,10.3513261,135.42,135.37,0.6959868]
[1767627266720,0.69515038,135.41,135.37,0.6959868]
[1767627266915,10.3513261,135.41,135.37,8.08282735]
[1767627267115,10.3513261,135.41,135.38,7.38660537]
[1767627267613,0.69515038,135.41,135.38,7.38661545]
[1767627268839,10.3513261,135.41,135.37,8.08293524]
[1767627270140,10.3513261,135.41,135.37,0.6959868]
[1767627271232,10.3513261,135.41,135.37,8.08314491]
[1767627271421,0.69515038,135.41,135.37,8.08314491]
[1767627272140,10.3513261,135.41,135.37,8.08314491]
[1767627273042,0.69515038,135.41,135.37,8.08314491]
[1767627273216,10.3513261,135.41,135.37,8.08314491]
[1767627274443,0.69515038,135.41,135.37,8.08314491]
[1767627275026,9.65617572,135.42,135.38,0.70940863]
[1767627275231,0.65669078,135.43,135.39,10.36558435]
[1767627276342,0.65669078,135.45,135.4,0.70940863]
[1767627276543,0.65669078,135.46,135.41,0.70940863]
[1767627276742,0.65669078,135.46,135.42,0.70940863]
[1767627276946,10.3128665,135.46,135.42,0.70940863]
[1767627277524,0.65669078,135.46,135.42,0.70940863]
[1767627278331,0.65669078,135.46,135.42,7.38443361]
[1767627278529,0.1,135.47,135.43,0.70940863]
[1767627278726,0.1,135.47,135.43,4.48605639]
[1767627278948,0.75669078,135.47,135.43,0.70940863]
[1767627279354,0.65669078,135.46,135.42,7.38443361]
[1767627279657,4.43333854,135.46,135.42,7.38443361]
[1767627279839,0.65669078,135.46,135.42,7.38443361]
[1767627280042,0.65669078,135.46,135.41,14.16940863]
[1767627280043,0.65669078,135.45,135.41,14.16940863]
[1767627280239,0.65669078,135.45,135.41,25.33083102]
[1767627280542,0.65669078,135.46,135.41,25.33083102]
[1767627280731,0.65669078,135.45,135.41,21.55418326]
[1767627281421,0.75669078,135.47,135.42,0.70940863]
[1767627281627,0.65669078,135.46,135.42,0.70940863]
[1767627282131,0.1,135.47,135.42,0.70940863]
[1767627282334,0.65669078,135.5,135.45,4.48605639]
[1767627282640,10.29827899,135.49,135.45,0.70940863]
[1767627283165,0.65669078,135.49,135.45,0.70940863]
[1767627283450,10.29827899,135.49,135.45,7.38259266]
[1767627283629,0.65669078,135.48,135.45,7.38259266]
[1767627284439,0.65669078,135.48,135.44,21.55252077]
[1767627284622,0.65669078,135.48,135.44,20.84311214]
[1767627284826,0.65669078,135.48,135.45,7.38268544]
[1767627287645,10.29827899,135.48,135.44,13.46]
[1767627287822,0.65669078,135.47,135.44,13.46]
[1767627288022,0.65669078,135.47,135.44,20.84324401]
[1767627288831,0.65669078,135.47,135.42,14.16940863]
[1767627289033,0.65669078,135.47,135.43,7.38353748]
[1767627289232,0.65669078,135.45,135.42,7.38421936]
[1767627289433,9.64158821,135.46,135.39,7.38572362]
[1767627289434,0.65669078,135.43,135.39,7.38572362]
[1767627289629,0.65669078,135.42,135.38,8.09555275]
[1767627289834,0.65669078,135.41,135.37,13.46]
[1767627290657,0.65669078,135.41,135.38,7.38632585]
[1767627291540,9.64158821,135.42,135.38,8.09573448]
[1767627291748,10.29827899,135.43,135.38,8.09573448]
[1767627291940,0.65669078,135.43,135.38,8.09573448]
[1767627292145,17.68229571,135.43,135.38,8.09573448]
[1767627292354,0.65669078,135.42,135.38,8.09573448]
[1767627294456,0.71477227,135.39,135.36,7.38747646]
[1767627294750,0.71477227,135.41,135.38,7.38631616]
[1767627294963,0.71477227,135.41,135.37,8.0520623]
[1767627295346,0.71477227,135.41,135.38,7.38645354]
[1767627295562,9.64158821,135.43,135.38,7.38645354]
[1767627295852,20.84359133,135.44,135.38,7.38645354]
[1767627296063,9.64158821,135.43,135.38,7.38645354]
[1767627296354,17.02575588,135.43,135.38,8.05159471]
[1767627296855,9.64158821,135.43,135.38,8.05159471]
[1767627297545,10.35636048,135.43,135.38,8.05159471]
[1767627298047,17.74031449,135.43,135.38,8.05159471]
[1767627298248,9.64158821,135.42,135.38,8.05159471]
[1767627298551,9.64158821,135.42,135.38,0.66514117]
[1767627298753,10.26975138,135.4,135.36,0.66514117]
[1767627298958,10.26975138,135.4,135.35,21.51303378]
[1767627299137,0.62816317,135.4,135.36,8.05271125]
[1767627299829,9.64158821,135.41,135.37,0.66514117]
[1767627299830,10.26888538,135.41,135.37,0.66514117]
[1767627300031,10.26888538,135.41,135.36,7.38757008]
[1767627300032,10.26888538,135.41,135.36,8.05271125]
[1767627300231,0.71304018,135.38,135.34,0.66514117]
[1767627300549,9.64158821,135.39,135.3,36.95411026]
[1767627300550,10.27143203,135.35,135.3,8.05581522]
[1767627301056,0.62984382,135.35,135.31,0.67974038]
[1767627301782,0.62984382,135.35,135.29,13.46]
[1767627301783,0.68426838,135.39,135.34,10.32132859]
[1767627301933,0.68426838,135.39,135.33,10.32132859]
[1767627301934,0.68400066,135.37,135.33,10.32132859]
[1767627302133,0.65749602,135.38,135.33,10.32132859]
[1767627302967,0.65749602,135.38,135.34,7.38879858]
[1767627303148,0.65749602,135.38,135.34,17.03038679]
[1767627303461,8.04411816,135.38,135.33,10.32132859]
[1767627303862,8.07024058,135.4,135.35,10.32132859]
[1767627304059,0.68426838,135.4,135.35,0.67974038]
[1767627304364,0.68426838,135.4,135.36,9.64158821]
[1767627304537,0.68426838,135.42,135.38,0.67974038]
[1767627304742,8.04175361,135.43,135.39,0.67974038]
[1767627305043,0.68400066,135.42,135.38,0.67974038]
[1767627305260,0.68373827,135.4,135.36,0.67974038]
[1767627305446,0.68373827,135.4,135.35,20.84813922]
[1767627305447,0.65802083,135.39,135.35,17.24041981]
[1767627305841,0.65802083,135.39,135.35,13.46]
[1767627306035,4.43844064,135.39,135.35,13.46]
[1767627306238,3.78041981,135.4,135.35,12.79507532]
[1767627306458,0.099,135.39,135.35,13.4748157]
[1767627306657,0.099,135.39,135.35,11.84840157]
[1767627306852,0.5834811,135.39,135.33,0.67974038]
[1767627307059,3.78041981,135.38,135.34,0.67974038]
[1767627307658,0.099,135.38,135.34,0.67974038]
[1767627308064,3.87941981,135.38,135.32,25.30990655]
[1767627308269,0.099,135.38,135.33,4.46016019]
[1767627308447,3.87941981,135.38,135.33,4.46016019]
[1767627308767,3.87941981,135.38,135.33,11.84917993]
[1767627308973,0.099,135.38,135.33,11.84917993]
[1767627309142,3.87941981,135.38,135.33,11.84917993]
[1767627309636,18.46442058,135.4,135.35,4.46016019]
[1767627309637,7.9692609,135.4,135.35,4.46016019]
[1767627309846,0.5834811,135.42,135.37,4.46016019]
[1767627310045,4.36390091,135.42,135.37,4.46016019]
[1767627310561,0.5834811,135.42,135.37,4.46016019]
[1767627310942,14.0434811,135.44,135.38,4.46016019]
[1767627311169,4.36390091,135.44,135.39,4.46016019]
[1767627311546,0.099,135.43,135.39,0.67974038]
[1767627311746,0.099,135.43,135.38,0.67974038]
[1767627311948,0.099,135.43,135.38,4.46016019]
[1767627312148,0.099,135.43,135.39,3.78041981]
[1767627312570,0.099,135.43,135.38,0.67974038]
[1767627312772,0.099,135.43,135.38,4.46016019]
[1767627312969,0.099,135.43,135.39,7.38606987]
[1767627314149,0.099,135.43,135.38,8.06611763]
[1767627314359,3.87941981,135.43,135.38,11.84653744]
[1767627314566,7.48252221,135.44,135.4,0.67974038]
[1767627314871,17.13236674,135.44,135.39,9.64984453]
[1767627315060,17.13236674,135.44,135.39,10.32958491]
[1767627315264,0.099,135.44,135.39,17.71530291]
[1767627315467,9.74884453,135.44,135.39,17.71530291]
[1767627316182,9.74884453,135.44,135.39,8.06545838]
[1767627316359,0.099,135.44,135.39,17.71530291]
[1767627316560,13.42055952,135.44,135.39,8.06545838]
[1767627316762,0.57863628,135.43,135.39,8.06580534]
[1767627316980,13.42055952,135.44,135.39,0.67974038]
[1767627317179,6.51676507,135.43,135.39,0.67974038]
[1767627318060,0.10379637,135.42,135.37,8.06665376]
[1767627318260,0.10379637,135.42,135.37,14.00478255]
[1767627318676,0.5834811,135.47,135.41,6.61786917]
[1767627318874,0.5834811,135.47,135.42,6.61786917]
[1767627318875,6.52160989,135.47,135.42,6.61786917]
[1767627319061,6.52160989,135.47,135.42,0.67974038]
[1767627319258,0.5834811,135.47,135.42,6.61786917]
[1767627319489,0.5834811,135.47,135.38,13.46]
[1767627319490,0.5834811,135.48,135.44,6.61786917]
[1767627319783,5.93812879,135.49,135.44,6.61786917]
[1767627319784,0.099,135.49,135.44,6.61786917]
[1767627320080,0.099,135.49,135.45,6.61786917]
[1767627320377,5.93812879,135.5,135.45,0.67974038]
[1767627320574,5.93812879,135.49,135.45,8.0623155]
[1767627321279,7.4800018,135.51,135.46,0.67974038]
[1767627321475,5.93812879,135.5,135.46,0.67974038]
[1767627321676,5.93812879,135.5,135.45,13.32070391]
[1767627321883,19.39812879,135.5,135.45,14.00044429]
[1767627322178,0.1,135.51,135.49,0.67974038]
[1767627322973,0.1,135.51,135.49,6.61786917]
[1767627323173,0.20281627,135.51,135.49,5.93812879]
[1767627323583,0.1,135.51,135.5,0.67974038]
[1767627323973,13.56,135.54,135.5,0.67974038]
[1767627324482,0.199,135.54,135.49,13.99843594]
[1767627324664,0.099,135.55,135.53,5.93812879]
[1767627325071,0.1,135.56,135.54,5.93812879]
[1767627325283,0.58062628,135.56,135.51,5.93812879]
[1767627325666,7.95745004,135.56,135.51,6.61786917]
[1767627325981,7.95745004,135.56,135.51,0.67974038]
[1767627326164,39.85946833,135.56,135.51,0.67974038]
[1767627326358,6.41497697,135.54,135.49,0.67974038]
[1767627326678,6.41497697,135.54,135.48,5.93812879]
[1767627326679,6.41127405,135.52,135.47,0.67974038]
[1767627326862,5.93812879,135.51,135.47,0.67974038]
[1767627327258,0.46595903,135.48,135.43,13.46]